Cogmind - Beta 11.1 @@@ ROGUE MODE // 2022.06.23 @ 23:22:58 Player: Jezoensis Result: Self-destructed Performance ------------- Evolutions (4) 2000 Regions Visited (9) 1800 Robots Destroyed (59) 295 Value Destroyed (1544) 1544 Prototype IDs (27) 540 Alien Tech Used (0) 0 Bonus (300) 300 TOTAL SCORE: 6479 Bonus ------- Aligned with FarCom 300 Cogmind --------- Core Integrity 379/850 Matter 260/300 Energy 280/280 System Corruption 0% Temperature Cool (0) Movement Rolling (230) Ox10 Location -6/Lower Caves Parts ------- > --- POWER (1) -------- Heavy Ion Engine > --- PROPULSION (3) --- Light Treads Advanced Treads Wheel > --- UTILITY (8) ------ Huge Storage Unit Structural Scanner Advanced Sensor Array Advanced Signal Interpreter Improved Terrain Scanner Advanced Terrain Scan Processor Advanced Targeting Computer Improved Utility Shielding > --- WEAPON (3) ------- Precision Assault Rifle Heavy Machine Gun Heavy Machine Gun > --- INVENTORY (25) --- Light Angular Momentum Engine Medium Treads Medium Treads Medium Treads Medium Treads Improved Heat Sink Improved Heat Sink Improved Cooling System Disposable Heat Sink Large Storage Unit High-capacity Matter Pod (200) High-capacity Matter Pod (200) Makeshift Salvage Targeting Computer Improved Shield Generator Long-range Tractor Beam High-powered Shock Rifle High-powered Shock Rifle High-powered Shock Rifle Proton Cannon Phase Cannon Firepult Makeshift Shrapnel Gun Makeshift Shrapnel Gun Improved Grenade Launcher Peak State ------------ > --- POWER ------------ Fission Core > --- PROPULSION ------- Wheel Wheel Compact Wheel > --- UTILITY ---------- Huge Storage Unit Advanced Signal Interpreter Improved Terrain Scanner Terrain Scan Processor Advanced Targeting Computer Improved Utility Shielding Improved Shield Generator Improved System Shield > --- WEAPON ----------- Precision Assault Rifle Precision Assault Rifle Heavy Machine Gun > --- INVENTORY -------- Heavy Ion Engine Improved Deuterium Engine Light Treads Advanced Treads Medium Treads Medium Treads Medium Treads Medium Treads Improved Heat Sink Improved Cooling System Disposable Heat Sink Large Storage Unit Structural Scanner Advanced Sensor Array Long-range Tractor Beam High-powered Shock Rifle High-powered Shock Rifle High-powered Shock Rifle High-powered Shock Rifle Phase Cannon Firepult Precision Assault Rifle Heavy Machine Gun Improved Grenade Launcher [Rating: 59] Favorites ----------- Power Heavy Ion Engine Engine Heavy Ion Engine Power Core Nuclear Core Propulsion Wheel Treads Light Treads Wheel Wheel Utility Improved Terrain Scanner Device Improved Terrain Scanner Storage Huge Storage Unit Processor Advanced Targeting Computer Hackware Improved System Shield Protection Improved Utility Shielding Weapon Precision Assault Rifle Energy Gun Heavy Laser Energy Cannon Phase Cannon Ballistic Gun Precision Assault Rifle Launcher Improved Grenade Launcher Special Weapon Mining Laser Impact Weapon Mace Build | -11 -10 -10 -10 -9 -8 -7 -6 -6 -6 ------- Run | Scr Mat Min Exi Min Mat Fac Fac Low Low Slots Evolved 8 | . . . . . 4 2 2 . . Power . | . . . . . . . . . . Propulsion 1 | . . . . . 1 . . . . Utility 6 | . . . . . 2 2 2 . . Weapon 1 | . . . . . 1 . . . . Parts Attached 143 | 7 2 2 . 5 48 15 50 8 6 Power 10 | 1 . . . 1 2 1 5 . . Engine 7 | 1 . . . 1 1 1 3 . . Core 3 | . . . . . 1 . 2 . . Reactor . | . . . . . . . . . . Propulsion 31 | 3 . . . 1 10 3 13 . 1 Treads 15 | . . . . . 7 1 6 . 1 Leg . | . . . . . . . . . . Wheel 16 | 3 . . . 1 3 2 7 . . Hover . | . . . . . . . . . . Flight . | . . . . . . . . . . Utility 41 | 1 1 1 . . 14 6 15 3 . Device 27 | . . 1 . . 9 4 10 3 . Storage 3 | 1 1 . . . . 1 . . . Processor 5 | . . . . . 2 1 2 . . Hackware 3 | . . . . . 1 . 2 . . Protection 3 | . . . . . 2 . 1 . . Artifact . | . . . . . . . . . . Weapon 61 | 2 1 1 . 3 22 5 17 5 5 Energy Gun 21 | 1 . 1 . 2 11 3 3 . . Energy Cannon 9 | . . . . . . . 4 4 1 Ballistic Gun 19 | 1 . . . 1 4 . 9 . 4 Ballistic Cannon . | . . . . . . . . . . Launcher 1 | . . . . . . . . 1 . Special Weapon 8 | . 1 . . . 7 . . . . Impact Weapon 3 | . . . . . . 2 1 . . Slashing Weapon . | . . . . . . . . . . Piercing Weapon . | . . . . . . . . . . Special Melee Weapon . | . . . . . . . . . . Unidentified Prototypes 4 | . . . . . 1 1 2 . . Parts Lost 22 | . . . . 3 8 . 10 . 1 Power 2 | . . . . 1 . . 1 . . Propulsion 9 | . . . . 1 3 . 4 . 1 Utility 3 | . . . . . 1 . 2 . . Weapon 8 | . . . . 1 4 . 3 . . Highest Loss Streak 7 | . . . . 3 7 . 5 . 1 To Critical Strikes 1 | . . . . 1 . . . . . Average Slot Usage (%) 98 | . 85 97 100 97 98 99 98 100 99 Engine 5 | . 14 14 14 11 3 5 4 6 6 Core 1 | . . . . . 5 1 1 . . Treads 5 | . . . . . 10 7 1 6 12 Wheel 16 | . 28 28 28 28 16 15 17 13 6 Device 16 | . . 12 14 14 12 15 19 20 20 Storage 7 | . 14 14 14 14 9 7 6 6 6 Processor 13 | . . . . . 9 14 15 20 20 Hackware 4 | . . . . . 4 7 7 . . Protection 2 | . . . . . . . 2 6 6 Energy Gun 8 | . 12 14 14 16 19 18 3 2 . Energy Cannon 1 | . . . . . . . 2 3 1 Ballistic Gun 10 | . 14 14 14 11 4 . 11 13 18 Naked Turns . | . . . . . . . . . . Heaviest Build 114 | 10 25 27 27 27 42 101 114 109 109 Greatest Support 60 | 20 20 20 20 20 60 32 42 20 20 Greatest Overweight (x) 10 | . 1 1 1 1 1 3 5 5 10 Average Overweight (x) 2 | . . 1 1 1 . 1 2 5 9 Largest Inventory Capacity 25 | 8 15 15 15 15 15 25 25 25 25 Average Capacity 20 | 7 9 15 15 15 15 16 25 25 25 Most Carried 25 | 7 8 9 11 15 15 17 25 25 25 Average Carried 18 | 4 7 8 9 10 14 14 23 25 24 Final Capacity 25 | 8 15 15 15 15 15 25 25 25 25 Final Carried 25 | 7 8 9 11 15 15 17 25 25 25 Class Distribution -------------------- 57% | Scavenger-Skirmisher 20% | Scavenger-Mutant 12% | Mutant 7% | Scavenger-Assassin Dominant Class ---------------- Mutant | -10/Materials Mutant | -10/Mines Mutant | -10/Exiles Mutant | -9/Mines Scavenger-Skirmisher | -8/Materials Scavenger-Mutant | -7/Factory Scavenger-Skirmisher | -6/Factory Scavenger-Skirmisher | -6/Lower Caves Scavenger-Skirmisher | -6/Lower Caves Resources | -11 -10 -10 -10 -9 -8 -7 -6 -6 -6 ----------- Run | Scr Mat Min Exi Min Mat Fac Fac Low Low Matter Collected 2662 | 291 12 17 24 45 445 260 830 429 309 Remotely 432 | . . . . . . . 260 172 . Salvage Created 2735 | 202 106 17 . 75 621 475 796 278 165 Parts 151 | 15 9 4 . 11 29 19 42 11 11 Haulers Intercepted 2 | . . . . . . 2 . . . Recyclers Shooed 5 | . . . . 2 . 1 2 . . Parts Field Recycled . | . . . . . . . . . . Retrieved Matter . | . . . . . . . . . . Parts Self-Destructed 14 | . . . . . . . . 6 8 Prevented 2 | . . . . . . . . 2 . Kills | -11 -10 -10 -10 -9 -8 -7 -6 -6 -6 ------- Run | Scr Mat Min Exi Min Mat Fac Fac Low Low Combat Hostiles Destroyed 35 | . 4 . . 3 10 1 8 5 4 Guns 30 | . 4 . . 3 10 1 7 1 4 AOE 4 | . . . . . . . . 4 . Classes Destroyed 13 | 2 3 . . 1 1 2 2 1 1 Worker 3 | . . . . . . 1 2 . . Builder 2 | . . . . 1 . 1 . . . Tunneler 8 | 5 . 1 . . 1 1 . . . Hauler 2 | . . . . . . 2 . . . Recycler 7 | 1 . . . . 1 3 2 . . Watcher 2 | . 1 . . . . . 1 . . Swarmer 13 | . 3 . . 3 . . . 4 3 Grunt 7 | . 1 . . . 6 . . . . Sentry 8 | . . . . . 4 1 2 1 . Hunter 3 | . . . . . . . 3 . . Programmer 3 | . . . . . . . 3 . . Decomposer 3 | . . . . . . . . . 3 Samaritan 3 | . . . . . . . . 3 . Thief 1 | . . . . . . . . . 1 Best Kill Streak 6 | 4 5 1 . 3 6 6 2 5 3 Combat Bots Only 6 | . 4 . . 3 6 1 2 5 3 Max Kills in Single Turn 2 | 1 2 1 . 2 1 2 1 2 1 Gunslinging 1 | . 1 . . 1 . . . . . Exploded 2 | . . . . . . . . 2 . Melee . | . . . . . . . . . . Uniques/NPCs Destroyed . | . . . . . . . . . . Combat | -11 -10 -10 -10 -9 -8 -7 -6 -6 -6 -------- Run | Scr Mat Min Exi Min Mat Fac Fac Low Low Damage Taken 3969 | . 197 . . 135 1313 130 1808 216 170 Core 883 | . 77 . . 34 284 17 420 16 35 Absorbed by Shields 325 | . . . . . . . 325 . . Redirected to Shielding 35 | . . . . . . . 7 28 . Core Remaining (%) 75 | 100 . . . 55 48 97 . . . Volleys Fired 195 | 21 13 1 . 11 62 10 48 14 15 Largest 3 | 2 2 2 . 2 3 3 3 3 3 Hottest 194 | 60 100 60 . 80 194 183 145 131 141 Shots Fired 443 | 42 24 2 . 22 131 30 125 30 37 Gun 387 | 42 23 2 . 22 107 30 115 19 27 Cannon 29 | . . . . . . . 10 9 10 Launcher 2 | . . . . . . . . 2 . Special 25 | . 1 . . . 24 . . . . Kinetic 251 | 21 12 1 . 8 65 . 101 16 27 Thermal 141 | 21 12 . . 4 60 20 10 4 10 Explosive 2 | . . . . . . . . 2 . Electromagnetic 49 | . . 1 . 10 6 10 14 8 . Robot Hit Streak 30 | 6 4 2 . 4 22 8 30 15 13 Robot Miss Streak 3 | 1 2 . . 2 3 2 1 1 1 Penetration Max 1 | . . . . . . . 1 . . Secondary Targets 11 | . 2 . . 2 5 . 2 . . Max Gunslinging Chain 1 | . 1 . . 1 1 . 1 . . Shots Hit Robots 300 | 29 16 1 . 14 83 22 99 17 19 Core Hits 124 | 11 9 1 . 5 30 14 33 12 9 Critical Kills . | . . . . . . . . . . Critical Parts Destroyed 2 | . . . . . . 1 1 . . Critical Strikes 6 | . . . . . . 3 2 1 . Burn 2 | . . . . . . 2 . . . Destroy 1 | . . . . . . . 1 . . Corrupt 2 | . . . . . . . 1 1 . Smash 1 | . . . . . . 1 . . . Melee Attacks 21 | . . . . . . 9 12 . . Impact 21 | . . . . . . 9 12 . . Slashing . | . . . . . . . . . . Piercing . | . . . . . . . . . . Sneak Attacks 1 | . . . . . . 1 . . . Combat Hostiles . | . . . . . . . . . . Follow-up Attacks . | . . . . . . . . . . Damage Inflicted 5140 | 284 149 12 . 155 1096 466 1877 668 433 Guns 4495 | 284 149 12 . 155 1096 344 1848 264 343 Cannons 250 | . . . . . . . 29 131 90 Explosions 309 | . . . . . . 36 . 273 . Melee 86 | . . . . . . 86 . . . Ramming . | . . . . . . . . . . Kinetic 2941 | 137 62 . . 22 610 . 1577 190 343 Thermal 1053 | 147 87 . . 47 406 247 29 . 90 Explosive 273 | . . . . . . . . 273 . Electromagnetic 787 | . . 12 . 86 80 133 271 205 . Impact 86 | . . . . . . 86 . . . Slashing . | . . . . . . . . . . Piercing . | . . . . . . . . . . Highest Corruption . | . . . . . . . . . . Average Corruption . | . . . . . . . . . . Corruption Purged . | . . . . . . . . . . Corruption Blocked . | . . . . . . . . . . Overload Shots . | . . . . . . . . . . Overflow Damage 167 | . . . . . . 86 . 51 30 Projectiles 59 | . . . . . . . . 29 30 Explosions 22 | . . . . . . . . 22 . Melee 86 | . . . . . . 86 . . . Knockbacks 1 | . . . . . . 1 . . . Impact 1 | . . . . . . 1 . . . Kinetic . | . . . . . . . . . . Secondary . | . . . . . . . . . . Self-Inflicted Damage 20 | . . . . . . 20 . . . Shots 1 | . . . . . . 1 . . . Rammed . | . . . . . . . . . . Targets Rammed . | . . . . . . . . . . Kicked . | . . . . . . . . . . Crushed . | . . . . . . . . . . Highest Temperature 180 | 60 84 20 . 40 147 180 72 144 144 Average Temperature 37 | 30 43 15 . 19 32 69 26 48 60 Received Heat Transfer 893 | . 54 . . . 747 30 38 24 . Siege Activations . | . . . . . . . . . . Robots Corrupted 1 | . . . . . . . 1 . . Combat Hostiles 1 | . . . . . . . 1 . . Parts Fried 5 | . . . . . . . 3 2 . Impact Corruptions 1 | . . . . . . 1 . . . Robots Melted . | . . . . . . . . . . Combat Hostiles . | . . . . . . . . . . Parts Melted 5 | . . . . . 2 3 . . . Heat Transferred 2197 | 325 200 . . 100 869 555 37 . 111 Parts Sabotaged . | . . . . . . . . . . Parts Stolen . | . . . . . . . . . . Parts Stripped . | . . . . . . . . . . Power Chain Reactions 1 | . . . . . . 1 . . . Missiles Intercepted . | . . . . . . . . . . Alert | -11 -10 -10 -10 -9 -8 -7 -6 -6 -6 ------- Run | Scr Mat Min Exi Min Mat Fac Fac Low Low Peak Influence 287 | 30 137 58 . 55 287 148 195 . . Initial 53 | . 19 53 . . 21 28 . . . Average 81 | 11 80 57 . 35 145 88 53 . . Maximum Alert Level 1 | . . . . . 1 . . . . Low Security (%) 93 | 100 100 100 . 100 74 100 100 . . Level 1 6 | . . . . . 25 . . . . Level 2 . | . . . . . . . . . . Level 3 . | . . . . . . . . . . Level 4 . | . . . . . . . . . . Level 5 . | . . . . . . . . . . High Security . | . . . . . . . . . . Max Security . | . . . . . . . . . . Squads Dispatched 16 | . 2 . . . 2 4 8 . . Investigation 6 | . . . . . . 2 4 . . Extermination 3 | . . . . . . 1 2 . . Reinforcement 7 | . 2 . . . 2 1 2 . . Assault . | . . . . . . . . . . Garrison . | . . . . . . . . . . Intercept . | . . . . . . . . . . Searches Triggered . | . . . . . . . . . . Construction Impeded . | . . . . . . . . . . Haulers Reinforced . | . . . . . . . . . . Active Scanning Responses . | . . . . . . . . . . Cargo Convoy Interrupts . | . . . . . . . . . . Stealth | -11 -10 -10 -10 -9 -8 -7 -6 -6 -6 --------- Run | Scr Mat Min Exi Min Mat Fac Fac Low Low Distress Signals 3 | . . . . . 2 . 1 . . Communications Jammed . | . . . . . . . . . . Distress Signals . | . . . . . . . . . . Times Spotted 53 | . 9 . . 3 15 2 17 5 2 Peak Tracking Total 6 | . 5 . . 3 6 1 6 5 3 Tactical Retreats 3 | . . . . . 1 . 2 . . Traps | -11 -10 -10 -10 -9 -8 -7 -6 -6 -6 ------- Run | Scr Mat Min Exi Min Mat Fac Fac Low Low Traps Triggered 1 | . . . . . . . 1 . . Indirectly . | . . . . . . . . . . Trap Hack Attempts . | . . . . . . . . . . Triggered . | . . . . . . . . . . Disarmed . | . . . . . . . . . . Reprogrammed . | . . . . . . . . . . Reused . | . . . . . . . . . . Traps Extracted . | . . . . . . . . . . Installed . | . . . . . . . . . . Triggered . | . . . . . . . . . . Machines | -11 -10 -10 -10 -9 -8 -7 -6 -6 -6 ---------- Run | Scr Mat Min Exi Min Mat Fac Fac Low Low Machines Disabled 1 | . . . . . 1 . . . . Max in Single Turn 1 | . . . . . 1 . . . . Garrison Access 3 | . . . . . 1 2 . . . Machines Sabotaged . | . . . . . . . . . . Garrisons Compromised . | . . . . . . . . . . Overloaded Fab Kills . | . . . . . . . . . . Hacking | -11 -10 -10 -10 -9 -8 -7 -6 -6 -6 --------- Run | Scr Mat Min Exi Min Mat Fac Fac Low Low Machines Accessed 19 | . 1 . 1 . 5 5 6 . 1 Terminals 13 | . 1 . . . 4 3 5 . . Fabricators . | . . . . . . . . . . Repair Stations . | . . . . . . . . . . Recycling Units . | . . . . . . . . . . Scanalyzers . | . . . . . . . . . . Garrison Access 4 | . . . . . 1 2 1 . . Total Hacks 53 | . 4 . 1 . 14 14 19 . 1 Successful 28 | . 2 . 1 . 10 7 7 . 1 Failed 25 | . 2 . . . 4 7 12 . . Catastrophic 5 | . . . . . . . 5 . . Database Lockouts . | . . . . . . . . . . Manual 34 | . 4 . 1 . 11 9 9 . . Terminals 45 | . 4 . . . 12 11 18 . . Fabricators . | . . . . . . . . . . Repair Stations . | . . . . . . . . . . Recycling Units . | . . . . . . . . . . Scanalyzers . | . . . . . . . . . . Garrison Access 6 | . . . . . 2 3 1 . . Terminal Hacks 15 | . . . 1 . 5 3 5 . 1 Robot Analysis 5 | . . . . . 3 . 2 . . Open Door 1 | . . . . . . . . . 1 Branch Access Points 2 | . . . . . . 1 1 . . Terminal Index 3 | . . . . . 1 1 1 . . Locate Traps 3 | . . . . . 1 1 1 . . EX-Prototype ID Bank 1 | . . . 1 . . . . . . Fabricator Hacks . | . . . . . . . . . . Repair Station Hacks . | . . . . . . . . . . Recycling Unit Hacks . | . . . . . . . . . . Scanalyzer . | . . . . . . . . . . Garrison Access Hacks 3 | . . . . . 1 2 . . . Seal Access 3 | . . . . . 1 2 . . . Unauthorized Hacks 10 | . 2 . . . 4 2 2 . . Terminals 9 | . 2 . . . 4 2 1 . . Track 1 | . 1 . . . . . . . . Assimilate 1 | . . . . . 1 . . . . Botnet 6 | . 1 . . . 2 2 1 . . Operators 1 | . . . . . 1 . . . . Fabricators . | . . . . . . . . . . Repair Stations . | . . . . . . . . . . Recycling Units . | . . . . . . . . . . Scanalyzers . | . . . . . . . . . . Garrison Access 1 | . . . . . . . 1 . . Eject 1 | . . . . . . . 1 . . Data Cores Recovered . | . . . . . . . . . . Used . | . . . . . . . . . . Hacking Detections 13 | . 1 . . . 4 3 5 . . Full Trace Events 6 | . 1 . . . . 2 3 . . Feedback Events 1 | . . . . . . . 1 . . Hackware Fried 1 | . . . . . . . 1 . . Feedback Blocked . | . . . . . . . . . . Robot Schematics Acquired . | . . . . . . . . . . Robots Built . | . . . . . . . . . . Authchips . | . . . . . . . . . . Time . | . . . . . . . . . . Total Robot Build Rating . | . . . . . . . . . . Part Schematics Acquired . | . . . . . . . . . . Parts Built . | . . . . . . . . . . Authchips . | . . . . . . . . . . Time . | . . . . . . . . . . Total Part Build Rating . | . . . . . . . . . . Parts Repaired . | . . . . . . . . . . Time . | . . . . . . . . . . Parts Recycled . | . . . . . . . . . . Recycled Matter . | . . . . . . . . . . Retrieved Matter . | . . . . . . . . . . Retrieved Components . | . . . . . . . . . . Parts Scanalyzed . | . . . . . . . . . . Part Schematics Acquired . | . . . . . . . . . . Parts Damaged . | . . . . . . . . . . Bothacking | -11 -10 -10 -10 -9 -8 -7 -6 -6 -6 ------------ Run | Scr Mat Min Exi Min Mat Fac Fac Low Low Used RIF Installer . | . . . . . . . . . . Robots Hacked . | . . . . . . . . . . Non-combat . | . . . . . . . . . . Combat . | . . . . . . . . . . Robot Hacks Applied . | . . . . . . . . . . Relay Couplers Released 6 | . . . . . . . 6 . . Ejected 3 | . . . . . . . 3 . . Programmers 3 | . . . . . . . 3 . . Fabnet Peak Effective % . | . . . . . . . . . . Robots Rewired . | . . . . . . . . . . Allies Hacked . | . . . . . . . . . . Hacks Repelled . | . . . . . . . . . . Allies | -11 -10 -10 -10 -9 -8 -7 -6 -6 -6 -------- Run | Scr Mat Min Exi Min Mat Fac Fac Low Low Total Allies . | . . . . . . . . . . Largest Group . | . . . . . . . . . . Highest-Rated Group . | . . . . . . . . . . Highest-Rated Ally . | . . . . . . . . . . Total Orders . | . . . . . . . . . . Ally Attacks . | . . . . . . . . . . Total Damage . | . . . . . . . . . . Kills . | . . . . . . . . . . Allies Corrupted . | . . . . . . . . . . Allies Melted . | . . . . . . . . . . Intel | -11 -10 -10 -10 -9 -8 -7 -6 -6 -6 ------- Run | Scr Mat Min Exi Min Mat Fac Fac Low Low Robot Analysis Total 5 | . . . . . 3 . 2 . . Derelict Logs Recovered 1 | . . . . . . . . 1 . Drone Launches . | . . . . . . . . . . Drone Recoveries . | . . . . . . . . . . Exploration | -11 -10 -10 -10 -9 -8 -7 -6 -6 -6 ------------- Run | Scr Mat Min Exi Min Mat Fac Fac Low Low Turns Passed 4124 | 122 114 65 230 65 802 400 1460 407 459 Spaces Moved 2538 | 64 88 61 242 23 488 264 899 231 178 Core 19 | 19 . . . . . . . . . Treads 22 | . . . . . 22 . . . . Legs . | . . . . . . . . . . Wheels 2497 | 45 88 61 242 23 466 264 899 231 178 Hover . | . . . . . . . . . . Flight . | . . . . . . . . . . Fastest Speed 50 | 50 80 95 95 95 80 105 123 155 155 Average Speed 124 | 71 82 95 95 95 104 116 129 155 226 Slowest Speed 230 | 80 95 95 95 95 160 145 155 155 230 Overloaded Moves . | . . . . . . . . . . Propulsion Burnouts . | . . . . . . . . . . Robots Hopped . | . . . . . . . . . . Cave-ins Triggered . | . . . . . . . . . . Exploration Rate (%) 30 | 4 28 16 64 9 48 10 30 51 40 Regions Visited 9 Branch Regions 5 Pre-discovered Areas . | . . . . . . . . . . Known Exits Taken 2 | . . . . . . . 1 1 . Unknown Exits Taken 7 | 1 1 1 1 1 1 1 . . . Scrap Searched 7 | . . . . 1 . . . 4 2 Spaces Dug 50 | . 1 . . . 23 5 13 4 4 Terrain Destroyed 78 | . 1 . . . 24 6 14 26 7 Melee 10 | . . . . . . 5 5 . . Projectile 45 | . 1 . . . 24 . 9 4 7 AOE 23 | . . . . . . 1 . 22 . Terrain Rammed . | . . . . . . . . . . Walls Destroyed . | . . . . . . . . . . Machines Disabled . | . . . . . . . . . . Actions | -11 -10 -10 -10 -9 -8 -7 -6 -6 -6 --------- Run | Scr Mat Min Exi Min Mat Fac Fac Low Low Total 3041 | 100 105 65 242 45 633 320 1074 253 204 Wait 21 | . 1 1 . . 1 . 18 . . Move 2529 | 63 87 60 241 22 487 263 898 230 178 Hop . | . . . . . . . . . . Pick Up 74 | 8 1 1 1 6 16 11 27 . 3 Fast Attach 27 | 5 1 1 . 1 8 1 9 1 . Attach 41 | 2 . . . 3 13 3 17 . 3 Detach 13 | 1 . . . 1 5 1 5 . . Swap 75 | . 1 1 . 1 27 11 24 7 3 Drop 45 | . 1 . . . 14 11 16 1 2 Fire 195 | 21 13 1 . 11 62 10 48 14 15 Melee 21 | . . . . . . 9 12 . . Ram . | . . . . . . . . . . Kick . | . . . . . . . . . . Crush . | . . . . . . . . . . Escape Stasis . | . . . . . . . . . . Rewire . | . . . . . . . . . . Trap . | . . . . . . . . . . Miscellaneous . | . . . . . . . . . . Route ------- -11/Scrapyard -10/Materials (discovered 3 exits: [*Mat] / [*Min x2]) -10/Mines -10/Exiles -9/Mines -8/Materials -7/Factory (discovered 3 exits: *Fac / Low x2) -6/Factory (discovered 4 exits: *Fac x2 / *Low x2) -6/Lower Caves -6/Lower Caves (discovered 1 exit: *Dat) History --------- Turn | Location | Event 12 | -11/Scrapyard | Discovered new exit (range 15) 123 | -11/Scrapyard | Entered Materials 148 | -10/Materials | Discovered new exit (range 15) 203 | -10/Materials | Discovered new exit (range 14) 203 | -10/Materials | Discovered new exit (range 12) 237 | -10/Materials | Entered Mines 260 | -10/Mines | Met a Derelict bent on vengeance 299 | -10/Mines | Deemed a non-threat by the Exiles lab entrance 299 | -10/Mines | Discovered new exit (range 5) 302 | -10/Mines | Build established: Mutant 302 | -10/Mines | Entered Exiles 325 | -10/Exiles | Met 8R-AWN 340 | -10/Exiles | Met EX-HEX 405 | -10/Exiles | Met EX-BIN 416 | -10/Exiles | Aligned with FarCom system 417 | -10/Exiles | Given EX-Vault access code 438 | -10/Exiles | Opened EX-Vault 443 | -10/Exiles | Found Firepult 462 | -10/Exiles | Warned to stay clear of 0b10 Research branches 492 | -10/Exiles | Met EX-DEC 525 | -10/Exiles | Discovered new exit (range 10) 532 | -10/Exiles | Left Exiles lab with Firepult 532 | -10/Exiles | Entered Mines 576 | -9/Mines | Discovered new exit (range 13) 583 | -9/Mines | Lost 3 parts (1p1n1w) 597 | -9/Mines | Entered Materials 597 | -8/Materials | Evolved 4 slots: Propulsion x1, Utility x2, Weapon x1 785 | -8/Materials | Lost 7 parts (2n1u4w) 888 | -8/Materials | Core integrity fell below 50% 1360 | -8/Materials | Discovered new exit (range 16) 1399 | -8/Materials | Entered Factory 1399 | -7/Factory | Evolved 2 slots: Utility x2 1652 | -7/Factory | Discovered new exit (range 4) 1753 | -7/Factory | Identified exit to Lower Caves 1799 | -7/Factory | Entered another Factory area 1799 | -6/Factory | Evolved 2 slots: Utility x2 2208 | -6/Factory | Hacking Suite fried by hacking feedback 2606 | -6/Factory | Lost 5 parts (2n1u2w) 2630 | -6/Factory | Discovered new exit (range 8) 2682 | -6/Factory | Identified exit to Factory 2864 | -6/Factory | Build established: Scavenger-Skirmisher 3107 | -6/Factory | Identified exit to Lower Caves 3197 | -6/Factory | Discovered exit to Factory (range 15) 3259 | -6/Factory | Entered Lower Caves 3284 | -6/Lower Caves | Learned Factory terminal intel 3529 | -6/Lower Caves | Spotted B-75 Beast 3618 | -6/Lower Caves | Attracted the attention of an 0b10 checkpoint 3624 | -6/Lower Caves | Discovered new exit (range 12) 3626 | -6/Lower Caves | Core integrity fell below 50% 3665 | -6/Lower Caves | Identified exit to Lower Caves 3666 | -6/Lower Caves | Entered another Lower Caves area 4088 | -6/Lower Caves | Discovered new exit (range 15) 4118 | -6/Lower Caves | Identified exit to Data Miner 4125 | -6/Lower Caves | Self-destructed Last Messages --------------- 03732_ Found Lgt. Angular Momentum Engine. 03732_ Found 36 Matter. 03733_ Acquired 36 matter. 03750_ Acquired 72 matter. 03764_ Acquired 58 matter. 03779_ S-27 Virus destroyed. 03789_ VTOL Module fries itself beyond repair. 03799_ Lgt. Nuclear Core fries itself beyond repair. 03802_ Acquired 71 matter. 03803_ VTOL Module fries itself beyond repair. 03915_ Connecting with WAR.Sys... >> Sealed Heavy Doors opened. 03915_ Dropped Prc. Assault Rifle. 03921_ Acquired Mak. Shrapnel Gun. 03927_ Acquired Mak. Salvage Targeting Computer. 03928_ Dropped Prc. Assault Rifle. 03934_ Acquired Mak. Shrapnel Gun. 04088_ EXIT=FOUND 04118_ EXIT=IDENTIFIED: DATA MINER Map ----- +----------------------------------------------------+ | ### #### ###### ######## # # | | ?## ### ###### # ####### # ## | | #### ### ## ####""### ###### # ## | | ?### ## ##### ## ###### ##### # # # | | ??## ####### "######## #### # | | ?### ######## ######## ### | | ??### ###?### ##?##### # # | | #?#### ######## ###?#??#### ## | | ?##### ############## ####### ##### # ### | | ##??## ##########?########## ######### ##### # | | ?##?## ############ ####### ? ############### | | ???### ######### ##### ? ??########?#### | | #???## ######## ### #?#? #????##?# | | ??#### ####### ?#?## ?#?#####? | | ??#### ##### ???# ?###?##?## | | #?#### ###?? [ ??# ?????#?#?## | | ?##### ##### %= ##???????#?? | | ##### ######## * ?? ##????#??##? | | #### #########? ?? ##?#???#?#? | | ## ## #### ? ##?#??#??? ? | | ## #### ? ### =% ##?#??##????? | | ## #### ### ## = ###??#??? ??? | | ######### #### ##???????????? | | ?######## #### ###??????????? | | ########## ## ##???????#??????????? | | ######?#### @ ###?#?? ? ???????????? | | ######?#### ## > ####?? ?? ?? ?????????? | | ?#?##??### ## ####??? ???????????????? | | ?##?#?###### ####?#??????????????????? | | ##??#??######## ####??# ##??????????????? | | #???##?#??######## ############?#???????#????????? | | #####?###???##############?##????????#???????????? | | ??#??###?####??######?#?#?#??######??????????????? | | ??######??####?####???###?#???##??#??????????????? | | ??##?#?#??###??#??#??#?#?#?#?####????????????????? | | ????#??#?#######??????#???###????????????????????? | | ???#?#???#??????##?###????#???#?????#????????????? | | ?????????####?###????##?#??????#?????????????????? | | ?????#??????#??####?##?????#?#???????????????????? | | ???????????#?#???#??#????##????#?????????????????? | | ????????????#????##?#?#####??????????????????????? | | ??????????##?#????#??????????????????????????????? | | ?????????????????????????????????????????????????? | | ?????????????????????????????????????????????????? | | ?????????????????????????????????????????????????? | | ?????????????????????????????????????????????????? | | ?????????????????????????????????????????????????? | | ?????????????????????????????????????????????????? | | ?????????????????????????????????????????????????? | | ?????????????????????????????????????????????????? | +----------------------------------------------------+ Best States ------------- Heat Dissipation 64 Energy Generation 18 Energy Capacity 310 Matter Stores 300 Matter Capacity 300 Sight Range 16 Robot Scan Range 16 Terrain Scan Range 16 Terrain Scan Density 210 Armor Coverage 150 Utility Shielding 66 Evasion (%) 50 Targeting Accuracy 8 Recoil Reduction 3 Offensive Hacking 10 Defensive Hacking 24 Item Schematics ----------------- None Robot Schematics ------------------ None Fabricated ------------ Nothing Alien Tech Used ----------------- None Achievements -------------- None Challenges ------------ None Game ------ Seed TerrabombLinkedEdition Manual? 0 Play Time 00:58:24 Cumulative 699.1 hours Start 2022.06.23 @ 22:22:46 End 2022.06.23 @ 23:22:58 Sessions 1 Manual Loads 0 Difficulty Rogue Special Mode None Game No. 366 Rogue 239 Adventurer 125 Explorer 2 Win Type - Total 80 Types 69/4/4/1/1/0/0/0/1 Lore% 81 Gallery% 88 Achievement% 75 Wizard Run 0 Options --------- ASCII 0 Keyboard 1 Movement Numpad Keybinds 0 Fullscreen 1 Font 36/TerminusFine Map View 76x50 Tactical HUD 1 Map Filters NONE Filters NONE Steam 1 RUN: 538cbe77-ec67-41e8-b098-2411f745bcb9